fUST/lending_fUST_20250724
["ID","MTS","AMOUNT","RATE_DAILY","PERIOD"]
[374558883,1753353058991,-151.0,0.00021139,2]
[374558884,1753353059000,-151.0,0.00021139,2]
[374558885,1753353059010,-151.0,0.00021139,2]
[374558886,1753353059019,-317.245903,0.00021139,2]
[374558887,1753353059029,-317.245903,0.00021139,2]
[374558888,1753353059040,-151.0,0.00021139,2]
[374558889,1753353059060,-190.228664,0.00021139,2]
[374558890,1753353059077,-1755.56944437,0.00021141,4]
[374558891,1753353059087,-218.7,0.00021171,4]
[374558892,1753353059096,-1755.56944437,0.00021348,5]
[374558893,1753353059106,-460.0,0.00021369,2]
[374558894,1753353059115,-460.0,0.00021369,2]
[374558895,1753353059125,-460.0,0.00021369,2]
[374558896,1753353059135,-151.80139244,0.00021369,2]
[374558897,1753353059144,-460.0,0.00021369,2]
[374558898,1753353059153,-452.90598027,0.00021369,2]
[374558899,1753353059163,-460.0,0.00021369,2]
[374558900,1753353059172,-460.0,0.00021369,2]
[374558901,1753353059182,-460.0,0.00021369,2]
[374558902,1753353059192,-460.0,0.00021369,2]
[374558903,1753353059201,-460.0,0.00021369,2]
[374558904,1753353059211,-460.0,0.00021369,2]
[374558905,1753353059220,-460.0,0.00021369,2]
[374558906,1753353059230,-168.58022546,0.00021369,2]
[374558907,1753353059245,-1883.5,0.00021369,2]
[374558908,1753353059259,-460.0,0.00021369,2]
[374558909,1753353059268,-460.0,0.00021369,2]
[374558910,1753353059278,-524.25,0.00021369,2]
[374558911,1753353059287,-460.0,0.00021369,2]
[374558912,1753353059297,-460.0,0.00021369,2]
[374558913,1753353059307,-460.0,0.00021369,2]
[374558914,1753353059317,-460.0,0.00021369,2]
[374558915,1753353059327,-498.97386836,0.00021369,2]
[374558916,1753353059336,-460.0,0.00021369,2]
[374558917,1753353059347,-460.0,0.00021369,2]
[374558918,1753353059356,-460.0,0.00021369,2]
[374558919,1753353059366,-1956.02,0.00021369,2]
[374558920,1753353059378,-460.0,0.00021369,2]
[374558921,1753353059388,-460.0,0.00021369,2]
[374558922,1753353059398,-460.0,0.00021369,2]
[374558923,1753353059408,-460.0,0.00021369,2]
[374558924,1753353059418,-460.0,0.00021369,2]
[374558925,1753353059428,-460.0,0.00021369,2]
[374558926,1753353059438,-460.0,0.00021369,2]
[374558927,1753353059447,-494.89839363,0.00021369,2]
[374558928,1753353059458,-1300.47,0.00021369,2]
[374558929,1753353059468,-460.0,0.00021369,2]
[374558930,1753353059478,-460.0,0.00021369,2]
[374558931,1753353059488,-460.0,0.00021369,2]
[374558932,1753353059498,-460.0,0.00021369,2]
[374558933,1753353059509,-460.0,0.00021369,2]
[374558934,1753353059518,-1185.16,0.00021369,2]
[374558935,1753353059528,-460.0,0.00021369,2]
[374558936,1753353059538,-460.0,0.00021369,2]
[374558937,1753353059548,-2933.9,0.00021369,2]
[374558938,1753353059558,-460.0,0.00021369,2]
[374558939,1753353059568,-521.62,0.00021369,2]
[374558940,1753353059580,-810.12,0.00021369,2]
[374558941,1753353059589,-985.46,0.00021369,2]
[374558942,1753353059599,-460.0,0.00021369,2]
[374558943,1753353059609,-460.0,0.00021369,2]
[374558944,1753353059619,-460.0,0.00021369,2]
[374558945,1753353059631,-460.0,0.00021369,2]
[374558946,1753353059642,-739.46,0.00021369,2]
[374558947,1753353059652,-460.0,0.00021369,2]
[374558948,1753353059662,-583.09,0.00021369,2]
[374558949,1753353059672,-460.0,0.00021369,2]
[374558950,1753353059683,-460.0,0.00021369,2]
[374558951,1753353059692,-460.0,0.00021369,2]
[374558952,1753353059702,-270.06177904,0.00021369,2]
[374558953,1753353059712,-460.0,0.00021369,2]
[374558954,1753353059722,-1634.08,0.00021369,2]
[374558955,1753353059733,-460.0,0.00021369,2]
[374558956,1753353059743,-460.0,0.00021369,2]
[374558957,1753353059753,-1390.29,0.00021369,2]
[374558958,1753353059764,-460.0,0.00021369,2]
[374558959,1753353059774,-460.0,0.00021369,2]
[374558960,1753353059783,-462.44,0.00021369,2]
[374558961,1753353059793,-550.96,0.00021369,2]
[374558962,1753353059803,-1060.41,0.00021369,2]
[374558963,1753353059812,-460.0,0.00021369,2]
[374558964,1753353059822,-2774.82,0.00021369,2]
[374558965,1753353059832,-460.0,0.00021369,2]
[374558966,1753353059842,-1086.16,0.00021369,2]
[374558967,1753353059852,-2045.17,0.00021369,2]
[374558968,1753353059862,-460.0,0.00021369,2]
[374558969,1753353059874,-1266.48,0.00021369,2]
[374558970,1753353059884,-1080.21,0.00021369,2]
[374558971,1753353059894,-460.0,0.00021369,2]
[374558972,1753353059904,-460.0,0.00021369,2]
[374558973,1753353059914,-460.0,0.00021369,2]
[374558974,1753353059924,-460.0,0.00021369,2]
[374558975,1753353059934,-218.7,0.0002151,4]
[374558976,1753353059943,-1755.56944437,0.00021555,5]
[374558977,1753353059953,-513.36135234,0.00021616,2]
[374558978,1753353059963,-460.0,0.00021643,2]
[374558979,1753353059973,-460.0,0.00021643,2]
[374558980,1753353059983,-151.0,0.00021643,2]
[374558981,1753353059992,-151.0,0.00021643,2]
[374558982,1753353060002,-151.0,0.00021643,2]
[374558983,1753353060012,-151.0,0.00021643,2]
[374558984,1753353060022,-215.14403475,0.00021643,2]
[374558985,1753353060032,-151.0,0.00021643,2]
[374558986,1753353060042,-188.327891,0.00021643,2]
[374558987,1753353060052,-473.36814905,0.00021643,2]
[374558988,1753353060065,-460.0,0.00021643,2]
[374558989,1753353060075,-460.0,0.00021643,2]
[374558990,1753353060085,-460.0,0.00021643,2]
[374558991,1753353060095,-460.0,0.00021643,2]
[374558992,1753353060105,-1883.5,0.00021643,2]
[374558993,1753353060114,-460.0,0.00021643,2]
[374558994,1753353060126,-460.0,0.00021643,2]
[374558995,1753353060136,-524.25,0.00021643,2]
[374558996,1753353060146,-463.34164963,0.00021643,2]
[374558997,1753353060155,-460.0,0.00021643,2]
[374558998,1753353060164,-460.0,0.00021643,2]
[374558999,1753353060174,-460.0,0.00021643,2]
[374559000,1753353060184,-460.0,0.00021643,2]
[374559001,1753353060195,-460.0,0.00021643,2]
[374559002,1753353060206,-1956.02,0.00021643,2]
[374559003,1753353060216,-460.0,0.00021643,2]
[374559004,1753353060226,-460.0,0.00021643,2]
[374559005,1753353060235,-460.0,0.00021643,2]
[374559006,1753353060408,-460.0,0.00021643,2]
[374559007,1753353060419,-460.0,0.00021643,2]
[374559008,1753353060429,-460.0,0.00021643,2]
[374559009,1753353060439,-1300.47,0.00021643,2]
[374559010,1753353060449,-460.0,0.00021643,2]
[374559011,1753353060459,-460.0,0.00021643,2]
[374559012,1753353060468,-460.0,0.00021643,2]
[374559013,1753353060478,-460.0,0.00021643,2]
[374559014,1753353060487,-1185.16,0.00021643,2]
[374559015,1753353060497,-460.0,0.00021643,2]
[374559016,1753353060507,-460.0,0.00021643,2]
[374559017,1753353060517,-2933.9,0.00021643,2]
[374559018,1753353060526,-460.0,0.00021643,2]
[374559019,1753353060536,-810.12,0.00021643,2]
[374559020,1753353060545,-985.46,0.00021643,2]
[374559021,1753353060554,-460.0,0.00021643,2]
[374559022,1753353060564,-460.0,0.00021643,2]
[374559023,1753353060574,-460.0,0.00021643,2]
[374559024,1753353060583,-739.46,0.00021643,2]
[374559025,1753353060593,-460.0,0.00021643,2]
[374559026,1753353060602,-583.09,0.00021643,2]
[374559027,1753353060612,-460.0,0.00021643,2]
[374559028,1753353060623,-460.0,0.00021643,2]
[374559029,1753353060632,-460.0,0.00021643,2]
[374559030,1753353060642,-460.0,0.00021643,2]
[374559031,1753353060651,-1634.08,0.00021643,2]
[374559032,1753353060661,-460.0,0.00021643,2]
[374559033,1753353060671,-460.0,0.00021643,2]
[374559034,1753353060681,-1390.29,0.00021643,2]
[374559035,1753353060691,-460.0,0.00021643,2]
[374559036,1753353060702,-460.0,0.00021643,2]
[374559037,1753353060711,-462.44,0.00021643,2]
[374559038,1753353060720,-550.96,0.00021643,2]
[374559039,1753353060730,-1060.41,0.00021643,2]
[374559040,1753353060739,-460.0,0.00021643,2]
[374559041,1753353060749,-2774.82,0.00021643,2]
[374559042,1753353060758,-460.0,0.00021643,2]
[374559043,1753353060767,-1086.16,0.00021643,2]
[374559044,1753353060777,-2045.17,0.00021643,2]
[374559045,1753353060787,-454.31647254,0.00021643,2]
[374559046,1753353060797,-1266.48,0.00021643,2]
[374559047,1753353060808,-1080.21,0.00021643,2]
[374559048,1753353060818,-460.0,0.00021643,2]
[374559049,1753353060827,-460.0,0.00021643,2]
[374559050,1753353060837,-376.40490601,0.00021643,2]
[374559051,1753353060847,-460.0,0.00021643,2]
[374559052,1753353060857,-877.72466876,0.00021739,2]
[374559053,1753353060866,-1755.56944437,0.00021762,5]
[374559054,1753353060876,-218.7,0.00021849,5]
[374559055,1753353060885,-658.728642,0.00021917,2]
[374559056,1753353060895,-460.0,0.00021917,2]
[374559057,1753353060905,-460.0,0.00021917,2]
[374559058,1753353060914,-151.0,0.00021917,2]
[374559059,1753353060924,-151.0,0.00021917,2]
[374559060,1753353060933,-151.0,0.00021917,2]
[374559061,1753353060943,-317.245903,0.00021917,2]
[374559062,1753353060952,-317.245903,0.00021917,2]
[374559063,1753353060962,-151.0,0.00021917,2]
[374559064,1753353060971,-460.0,0.00021917,2]
[374559065,1753353060981,-460.0,0.00021917,2]
[374559066,1753353060991,-460.0,0.00021917,2]
[374559067,1753353061000,-460.0,0.00021917,2]
[374559068,1753353061013,-1883.5,0.00021917,2]
[374559069,1753353061023,-460.0,0.00021917,2]
[374559070,1753353061033,-460.0,0.00021917,2]
[374559071,1753353061043,-524.25,0.00021917,2]
[374559072,1753353061055,-512.48422645,0.00021917,2]
[374559073,1753353061065,-460.0,0.00021917,2]
[374559074,1753353061074,-460.0,0.00021917,2]
[374559075,1753353061084,-250.50061606,0.00021917,2]
[374559076,1753353061095,-460.0,0.00021917,2]
[374559077,1753353061105,-1956.02,0.00021917,2]
[374559078,1753353061115,-460.0,0.00021917,2]
[374559079,1753353061125,-460.0,0.00021917,2]
[374559080,1753353061135,-460.0,0.00021917,2]
[374559081,1753353061146,-460.0,0.00021917,2]
[374559082,1753353061155,-460.0,0.00021917,2]
[374559083,1753353061164,-460.0,0.00021917,2]
[374559084,1753353061174,-1300.47,0.00021917,2]
[374559085,1753353061184,-460.0,0.00021917,2]
[374559086,1753353061194,-460.0,0.00021917,2]
[374559087,1753353061204,-460.0,0.00021917,2]
[374559088,1753353061213,-460.0,0.00021917,2]
[374559089,1753353061223,-1185.16,0.00021917,2]
[374559090,1753353061233,-460.0,0.00021917,2]
[374559091,1753353061243,-460.0,0.00021917,2]
[374559092,1753353061252,-2933.9,0.00021917,2]
[374559093,1753353061262,-460.0,0.00021917,2]
[374559094,1753353061272,-810.12,0.00021917,2]
[374559095,1753353061282,-985.46,0.00021917,2]
[374559096,1753353061292,-460.0,0.00021917,2]
[374559097,1753353061302,-460.0,0.00021917,2]
[374559098,1753353061311,-460.0,0.00021917,2]
[374559099,1753353061322,-739.46,0.00021917,2]
[374559100,1753353061331,-460.0,0.00021917,2]
[374559101,1753353061340,-583.09,0.00021917,2]
[374559102,1753353061351,-460.0,0.00021917,2]
[374559103,1753353061360,-460.0,0.00021917,2]
[374559104,1753353061371,-460.0,0.00021917,2]
[374559105,1753353061382,-460.0,0.00021917,2]
[374559106,1753353061391,-1634.08,0.00021917,2]
[374559107,1753353061401,-460.0,0.00021917,2]
[374559108,1753353061411,-500.0,0.00021917,2]
[374559109,1753353061420,-486.79078975,0.00021917,2]
[374559110,1753353061430,-460.0,0.00021917,2]
[374559111,1753353061440,-1390.29,0.00021917,2]
[374559112,1753353061450,-460.0,0.00021917,2]
[374559113,1753353061460,-460.0,0.00021917,2]
[374559114,1753353061469,-462.44,0.00021917,2]
[374559115,1753353061479,-550.96,0.00021917,2]
[374559116,1753353061489,-1060.41,0.00021917,2]
[374559117,1753353061499,-460.0,0.00021917,2]
[374559118,1753353061509,-2774.82,0.00021917,2]
[374559119,1753353061518,-460.0,0.00021917,2]
[374559120,1753353061528,-1086.16,0.00021917,2]
[374559121,1753353061538,-2045.17,0.00021917,2]
[374559122,1753353061547,-1266.48,0.00021917,2]
[374559123,1753353061557,-1080.21,0.00021917,2]
[374559124,1753353061567,-460.0,0.00021917,2]
[374559125,1753353061576,-460.0,0.00021917,2]
[374559126,1753353061587,-179.58591415,0.00021918,2]
[374559127,1753353061596,-1755.56944437,0.00021969,6]
[374559128,1753353061606,-7000.0,0.00022,3]
[374559129,1753353061615,-1538.92,0.00022,7]
[374559130,1753353061626,-1359.88,0.00022,7]
[374559131,1753353061635,-157.0,0.00022,2]
[374559132,1753353061644,-160.0,0.00022,3]
[374559133,1753353061653,-3007.35833008,0.00022,2]
[374559134,1753353061663,-4538.87676424,0.00022,5]
[374559135,1753353061672,-175.0,0.00022,2]
[374559136,1753353061682,-51186.91,0.00022,2]
[374559137,1753353061691,-157.0,0.00022,2]
[374559138,1753353061701,-500.0,0.0002216,2]
[374559139,1753353061712,-1755.56944437,0.00022176,6]
[374559140,1753353061721,-218.7,0.00022188,5]
[374559141,1753353061736,-460.0,0.00022191,2]
[374559142,1753353061753,-341.25414537,0.00022191,2]
[374559143,1753353061768,-221.83559352,0.00022191,2]
[374559144,1753353061779,-460.0,0.00022191,2]
[374559145,1753353061793,-460.0,0.00022191,2]
[374559146,1753353061807,-460.0,0.00022191,2]
[374559147,1753353061821,-1883.5,0.00022191,2]
[374559148,1753353061836,-408.50298325,0.00022191,2]
[374559149,1753353061848,-524.25,0.00022191,2]
[374559150,1753353061863,-460.0,0.00022191,2]
[374559151,1753353061880,-460.0,0.00022191,2]
[374559152,1753353061894,-460.0,0.00022191,2]
[374559153,1753353061910,-557.76496243,0.00022191,2]
[374559154,1753353061924,-1956.02,0.00022191,2]
[374559155,1753353061939,-460.0,0.00022191,2]
[374559156,1753353061954,-460.0,0.00022191,2]
[374559157,1753353061967,-460.0,0.00022191,2]
[374559158,1753353061978,-460.0,0.00022191,2]
[374559159,1753353061991,-460.0,0.00022191,2]
[374559160,1753353062003,-1300.47,0.00022191,2]
[374559161,1753353062018,-460.0,0.00022191,2]
[374559162,1753353062032,-460.0,0.00022191,2]
[374559163,1753353062045,-460.0,0.00022191,2]
[374559164,1753353062063,-460.0,0.00022191,2]
[374559165,1753353062077,-1185.16,0.00022191,2]
[374559166,1753353062092,-460.0,0.00022191,2]
[374559167,1753353062104,-460.0,0.00022191,2]
[374559168,1753353062114,-2933.9,0.00022191,2]
[374559169,1753353062128,-460.0,0.00022191,2]
[374559170,1753353062143,-810.12,0.00022191,2]
[374559171,1753353062158,-985.46,0.00022191,2]
[374559172,1753353062172,-460.0,0.00022191,2]
[374559173,1753353062184,-460.0,0.00022191,2]
[374559174,1753353062197,-156.11,0.00022191,2]
[374559175,1753353062212,-739.46,0.00022191,2]
[374559176,1753353062226,-460.0,0.00022191,2]
[374559177,1753353062238,-583.09,0.00022191,2]
[374559178,1753353062251,-460.0,0.00022191,2]
[374559179,1753353062263,-460.0,0.00022191,2]
[374559180,1753353062276,-460.0,0.00022191,2]
[374559181,1753353062289,-460.0,0.00022191,2]
[374559182,1753353062302,-1634.08,0.00022191,2]
[374559183,1753353062315,-460.0,0.00022191,2]
[374559184,1753353062328,-460.0,0.00022191,2]
[374559185,1753353062341,-1390.29,0.00022191,2]
[374559186,1753353062353,-460.0,0.00022191,2]
[374559187,1753353062366,-460.0,0.00022191,2]
[374559188,1753353062380,-462.44,0.00022191,2]
[374559189,1753353062392,-550.96,0.00022191,2]
[374559190,1753353062404,-1060.41,0.00022191,2]
[374559191,1753353062416,-460.0,0.00022191,2]
[374559192,1753353062429,-2774.82,0.00022191,2]
[374559193,1753353062441,-460.0,0.00022191,2]
[374559194,1753353062454,-2045.17,0.00022191,2]
[374559195,1753353062467,-1086.16,0.00022191,2]
[374559196,1753353062479,-1266.48,0.00022191,2]
[374559197,1753353062491,-1080.21,0.00022191,2]
[374559198,1753353062504,-460.0,0.00022191,2]
[374559199,1753353062516,-460.0,0.00022191,2]
[374559200,1753353062528,-151.0,0.00022318,2]
[374559201,1753353062540,-215.0738,0.00022318,2]
[374559202,1753353062552,-151.0,0.00022318,2]
[374559203,1753353062564,-151.0,0.00022318,2]
[374559204,1753353062577,-1755.56944437,0.00022383,7]
[374559205,1753353062589,-3286.20223331,0.00022431,2]
[374559206,1753353062602,-151.0,0.00022465,7]
[374559207,1753353062613,-460.0,0.00022465,2]
[374559208,1753353062627,-151.0,0.00022465,7]
[374559209,1753353062639,-151.0,0.00022465,7]
[374559210,1753353062652,-151.0,0.00022465,7]
[374559211,1753353062664,-151.0,0.00022465,7]
[374559212,1753353062676,-151.0,0.00022465,7]
[374559213,1753353062689,-460.0,0.00022465,2]
[374559214,1753353062702,-312.36254151,0.00022465,2]
[374559215,1753353062714,-460.0,0.00022465,2]
[374559216,1753353062727,-1883.5,0.00022465,2]
[374559217,1753353062739,-524.25,0.00022465,2]
[374559218,1753353062750,-460.0,0.00022465,2]
[374559219,1753353062762,-460.0,0.00022465,2]
[374559220,1753353062774,-460.0,0.00022465,2]
[374559221,1753353062786,-1956.02,0.00022465,2]
[374559222,1753353062799,-460.0,0.00022465,2]
[374559223,1753353062812,-460.0,0.00022465,2]
[374559224,1753353062824,-460.0,0.00022465,2]
[374559225,1753353062836,-460.0,0.00022465,2]
[374559226,1753353062848,-460.0,0.00022465,2]
[374559227,1753353062861,-1300.47,0.00022465,2]
[374559228,1753353062872,-460.0,0.00022465,2]
[374559229,1753353062886,-460.0,0.00022465,2]
[374559230,1753353062898,-340.9,0.00022465,2]
[374559231,1753353062910,-460.0,0.00022465,2]
[374559232,1753353062926,-1185.16,0.00022465,2]
[374559233,1753353062939,-460.0,0.00022465,2]
[374559234,1753353062951,-460.0,0.00022465,2]
[374559235,1753353062964,-2933.9,0.00022465,2]
[374559236,1753353062976,-460.0,0.00022465,2]
[374559237,1753353062989,-810.12,0.00022465,2]
[374559238,1753353063001,-985.46,0.00022465,2]
[374559239,1753353063014,-460.0,0.00022465,2]
[374559240,1753353063025,-460.0,0.00022465,2]
[374559241,1753353063038,-460.0,0.00022465,2]
[374559242,1753353063049,-739.46,0.00022465,2]
[374559243,1753353063066,-583.09,0.00022465,2]
[374559244,1753353063079,-460.0,0.00022465,2]
[374559245,1753353063091,-460.0,0.00022465,2]
[374559246,1753353063105,-460.0,0.00022465,2]
[374559247,1753353063118,-460.0,0.00022465,2]
[374559248,1753353063132,-1634.08,0.00022465,2]
[374559249,1753353063146,-460.0,0.00022465,2]
[374559250,1753353063159,-460.0,0.00022465,2]
[374559251,1753353063172,-1390.29,0.00022465,2]
[374559252,1753353063185,-460.0,0.00022465,2]
[374559253,1753353063197,-460.0,0.00022465,2]
[374559254,1753353063209,-462.44,0.00022465,2]
[374559255,1753353063222,-550.96,0.00022465,2]
[374559256,1753353063234,-1060.41,0.00022465,2]
[374559257,1753353063247,-460.0,0.00022465,2]
[374559258,1753353063260,-1808.58,0.00022465,2]
[374559259,1753353063272,-2774.82,0.00022465,2]
[374559260,1753353063284,-460.0,0.00022465,2]
[374559261,1753353063296,-2045.17,0.00022465,2]
[374559262,1753353063309,-1086.16,0.00022465,2]
[374559263,1753353063321,-1266.48,0.00022465,2]
[374559264,1753353063333,-1080.21,0.00022465,2]
[374559265,1753353063343,-460.0,0.00022465,2]
[374559266,1753353063354,-151.0,0.00022465,7]
[374559267,1753353063363,-460.0,0.00022465,2]
[374559268,1753353063373,-150.38003459,0.00022511,2]
[374559269,1753353063387,-474.34331691,0.00022513,2]
[374559270,1753353063397,-218.7,0.00022527,5]
[374559271,1753353063607,-1755.56944437,0.0002259,7]
[374559272,1753353063628,-245.39646125,0.000226,4]
[374559273,1753353063638,-208.13924,0.00022603,2]
[374559274,1753353063648,-4000.0,0.0002268,4]
[374559275,1753353063658,-521.64,0.00022734,3]
[374559276,1753353063668,-523.99,0.00022734,6]
[374559277,1753353063678,-214.7213231,0.00022734,3]
[374559278,1753353063688,-460.0,0.00022739,2]
[374559279,1753353063698,-151.0,0.00022739,7]
[374559280,1753353063708,-151.0,0.00022739,7]
[374559281,1753353063718,-151.0,0.00022739,7]
[374559282,1753353063728,-317.245903,0.00022739,7]
[374559283,1753353063738,-317.245903,0.00022739,7]
[374559284,1753353063748,-151.0,0.00022739,7]
[374559285,1753353063757,-415.52725102,0.00022739,2]
[374559286,1753353063767,-1883.5,0.00022739,2]
[374559287,1753353063777,-524.25,0.00022739,2]
[374559288,1753353063786,-569.38296403,0.00022739,2]
[374559289,1753353063795,-210.92,0.00022739,2]
[374559290,1753353063805,-1956.02,0.00022739,2]
[374559291,1753353063815,-460.0,0.00022739,2]
[374559292,1753353063826,-460.0,0.00022739,2]
[374559293,1753353063835,-460.0,0.00022739,2]
[374559294,1753353063846,-460.0,0.00022739,2]
[374559295,1753353063856,-460.0,0.00022739,2]
[374559296,1753353063867,-1300.47,0.00022739,2]
[374559297,1753353063877,-460.0,0.00022739,2]
[374559298,1753353063888,-460.0,0.00022739,2]
[374559299,1753353063899,-460.0,0.00022739,2]
[374559300,1753353063910,-1185.16,0.00022739,2]
[374559301,1753353063920,-403.44,0.00022739,2]
[374559302,1753353063930,-460.0,0.00022739,2]
[374559303,1753353063941,-2933.9,0.00022739,2]
[374559304,1753353063952,-460.0,0.00022739,2]
[374559305,1753353063962,-810.12,0.00022739,2]
[374559306,1753353063972,-985.46,0.00022739,2]
[374559307,1753353063982,-460.0,0.00022739,2]
[374559308,1753353063991,-460.0,0.00022739,2]
[374559309,1753353064001,-460.0,0.00022739,2]
[374559310,1753353064012,-739.46,0.00022739,2]
[374559311,1753353064022,-583.09,0.00022739,2]
[374559312,1753353064033,-460.0,0.00022739,2]
[374559313,1753353064043,-460.0,0.00022739,2]
[374559314,1753353064054,-460.0,0.00022739,2]
[374559315,1753353064067,-460.0,0.00022739,2]
[374559316,1753353064077,-1634.08,0.00022739,2]
[374559317,1753353064087,-460.0,0.00022739,2]
[374559318,1753353064098,-460.0,0.00022739,2]
[374559319,1753353064108,-1390.29,0.00022739,2]
[374559320,1753353064118,-460.0,0.00022739,2]
[374559321,1753353064129,-462.44,0.00022739,2]
[374559322,1753353064140,-550.96,0.00022739,2]
[374559323,1753353064150,-1060.41,0.00022739,2]
[374559324,1753353064160,-464.94126512,0.00022739,2]
[374559325,1753353064170,-2774.82,0.00022739,2]
[374559326,1753353064180,-460.0,0.00022739,2]
[374559327,1753353064189,-2045.17,0.00022739,2]
[374559328,1753353064200,-1086.16,0.00022739,2]
[374559329,1753353064210,-1266.48,0.00022739,2]
[374559330,1753353064220,-1080.21,0.00022739,2]
[374559331,1753353064230,-460.0,0.00022739,2]
[374559332,1753353064240,-460.0,0.00022739,2]
[374559333,1753353064250,-587.0,0.00022773,2]
[374559334,1753353064260,-1755.56944437,0.00022797,7]
[374559335,1753353064270,-521.64,0.00022834,2]
[374559336,1753353064279,-524.0,0.00022834,2]
[374559337,1753353064289,-218.7,0.00022866,5]
[374559338,1753353064299,-1711.7267647,0.000229,7]
[374559339,1753353064308,-658.728642,0.0002293,7]
[374559340,1753353064318,-521.64,0.00022934,7]
[374559341,1753353064328,-1965.8065903,0.00023,2]
[374559342,1753353064338,-43268.94729141,0.00023,4]
[374559343,1753353064348,-346.68603289,0.00023,2]
[374559344,1753353064358,-1336.56704993,0.00023,2]
[374559345,1753353064367,-526.24749348,0.00023,3]
[374559346,1753353064378,-160.0,0.00023,2]
[374559347,1753353064388,-160.0,0.00023,3]
[374559348,1753353064397,-1755.56944437,0.00023003,8]
[374559349,1753353064407,-460.0,0.00023013,2]
[374559350,1753353064417,-1883.5,0.00023013,2]
[374559351,1753353064426,-524.25,0.00023013,2]
[374559352,1753353064436,-1956.02,0.00023013,2]
[374559353,1753353064446,-460.0,0.00023013,2]
[374559354,1753353064455,-460.0,0.00023013,2]
[374559355,1753353064465,-460.0,0.00023013,2]
[374559356,1753353064475,-460.0,0.00023013,2]
[374559357,1753353064484,-460.0,0.00023013,2]
[374559358,1753353064494,-1300.47,0.00023013,2]
[374559359,1753353064503,-460.0,0.00023013,2]
[374559360,1753353064513,-460.0,0.00023013,2]
[374559361,1753353064523,-460.0,0.00023013,2]
[374559362,1753353064533,-1185.16,0.00023013,2]
[374559363,1753353064542,-458.48,0.00023013,2]
[374559364,1753353064551,-2933.9,0.00023013,2]
[374559365,1753353064561,-460.0,0.00023013,2]
[374559366,1753353064570,-810.12,0.00023013,2]
[374559367,1753353064580,-985.46,0.00023013,2]
[374559368,1753353064590,-460.0,0.00023013,2]
[374559369,1753353064599,-460.0,0.00023013,2]
[374559370,1753353064610,-460.0,0.00023013,2]
[374559371,1753353064620,-739.46,0.00023013,2]
[374559372,1753353064631,-583.09,0.00023013,2]
[374559373,1753353064640,-460.0,0.00023013,2]
[374559374,1753353064650,-460.0,0.00023013,2]
[374559375,1753353064660,-460.0,0.00023013,2]
[374559376,1753353064670,-460.0,0.00023013,2]
[374559377,1753353064679,-1634.08,0.00023013,2]
[374559378,1753353064689,-460.0,0.00023013,2]
[374559379,1753353064699,-460.0,0.00023013,2]
[374559380,1753353064709,-1390.29,0.00023013,2]
[374559381,1753353064718,-460.0,0.00023013,2]
[374559382,1753353064728,-462.44,0.00023013,2]